bitfinex-derivatives/quotes_ETHF0:USTF0_20250327
["timestamp","ask_amount","ask_price","bid_price","bid_amount"]
[1743072106994,4.03436586,2028.4,2028.3,0.0073888]
[1743072107897,3.11828,2028.4,2028.3,0.0073888]
[1743072108793,6.33228,2028.4,2028.3,0.0073888]
[1743072109392,3.11828,2028.4,2028.3,0.0073888]
[1743072109597,6.33128,2028.4,2028.3,0.0073888]
[1743072112091,3.11828,2028.4,2028.3,0.0073888]
[1743072112295,6.32828,2028.4,2028.3,0.0073888]
[1743072115996,7.20602174,2028.4,2028.3,0.0073888]
[1743072116588,8.12139188,2028.4,2028.3,0.0073888]
[1743072118298,11.32919188,2028.4,2028.3,0.0073888]
[1743072128491,10.62849188,2028.4,2028.3,0.0073888]
[1743072128697,10.62849188,2028.4,2028.3,1.3587888]
[1743072129002,6.54075014,2028.4,2028.3,1.3587888]
[1743072129203,9.73375014,2028.4,2028.3,2.6521888]
[1743072129600,6.50475664,2028.4,2028.3,2.6521888]
[1743072129903,8.81738,2028.4,2028.3,2.6521888]
[1743072130305,9.69564129,2028.4,2028.3,2.6521888]
[1743072130501,6.5046105,2028.4,2028.3,2.6521888]
[1743072130802,8.81638,2028.4,2028.3,2.6521888]
[1743072131112,7.38468,2028.4,2028.3,2.6521888]
[1743072131701,8.80308,2028.4,2028.3,2.6521888]
[1743072132007,9.68235608,2028.4,2028.3,2.6521888]
[1743072132208,9.68264196,2028.4,2028.3,2.6521888]
[1743072133105,10.60013646,2028.4,2028.3,2.6521888]
[1743072135402,10.60013646,2028.4,2028.3,1.3007888]
[1743072136004,10.60413646,2028.4,2028.3,1.3007888]
[1743072136511,9.68664196,2028.4,2028.3,1.3007888]
[1743072137112,9.68664196,2028.4,2028.3,2.6252888]
[1743072137507,9.68664196,2028.4,2028.3,3.6112088]
[1743072137703,8.26824196,2028.4,2028.3,2.6252888]
[1743072137903,7.38868,2028.4,2028.3,2.6252888]
[1743072140306,8.70948,2028.4,2028.3,2.6252888]
[1743072140503,8.70948,2028.4,2028.3,3.6112088]
[1743072140504,7.38868,2028.4,2028.3,3.6112088]
[1743072140811,7.38368,2028.4,2028.3,3.6112088]
[1743072141715,4.19368,2028.4,2028.3,3.6112088]
[1743072143805,3.2078,2028.4,2028.3,3.6112088]
[1743072144007,3.2078,2028.4,2028.3,4.0412088]
[1743072144207,3.2078,2028.4,2028.3,3.6112088]
[1743072144407,4.92904,2028.6,2028.3,3.6112088]
[1743072144612,4.92904,2028.6,2028.4,2.41374]
[1743072144613,0.98583,2028.5,2028.4,2.41374]
[1743072145416,2.36453,2028.5,2028.4,2.41374]
[1743072147017,0.98583,2028.5,2028.4,2.41374]
[1743072150616,2.36962,2028.6,2028.5,0.98583]
[1743072150822,2.36962,2028.6,2028.5,2.31723]
[1743072151318,4.19357,2028.7,2028.6,0.98578]
[1743072151518,4.19357,2028.7,2028.6,2.98808]
[1743072151719,4.19357,2028.7,2028.6,3.65778]
[1743072152421,4.19357,2028.7,2028.6,2.672]
[1743072152631,5.52917,2028.7,2028.6,2.672]
[1743072152816,5.52917,2028.7,2028.6,3.65778]
[1743072154828,5.52917,2028.7,2028.6,1.3314]
[1743072155128,0.98583,2028.5,2028.4,2.30802]
[1743072155320,0.98583,2028.5,2028.4,3.74102]
[1743072155721,2.31513,2028.5,2028.4,3.74102]
[1743072160136,0.98583,2028.5,2028.4,3.74102]
[1743072160727,2.35243,2028.5,2028.4,3.74102]
[1743072161935,4.19357,2028.7,2028.6,0.98578]
[1743072162135,5.56017,2028.7,2028.6,1.43578]
[1743072162335,5.56017,2028.7,2028.6,0.98578]
[1743072162532,5.56017,2028.7,2028.6,2.39338]
[1743072163631,4.19357,2028.7,2028.6,2.39338]
[1743072164337,3.2078,2028.7,2028.6,2.39338]
[1743072165634,4.19353,2028.7,2028.6,2.39338]
[1743072166137,3.2078,2028.7,2028.6,2.39338]
[1743072167225,3.2078,2028.7,2028.6,2.86338]
[1743072167425,5.55691,2029.0,2028.9,0.98563]
[1743072168739,6.87781,2029.0,2028.9,0.98563]
[1743072173039,0.98576,2028.8,2028.7,0.98569]
[1743072173235,2.46421,2028.8,2028.4,1.3695]
[1743072173434,0.98583,2028.5,2028.4,1.3088]
[1743072173835,0.98588,2028.4,2028.3,0.9932788]
[1743072174038,1.65468,2028.4,2028.3,0.0073888]
[1743072174236,3.02978,2028.4,2028.3,0.0073888]
[1743072175541,3.02978,2028.4,2028.3,1.4364888]
[1743072177737,3.02978,2028.4,2028.3,0.0073888]
[1743072179246,3.68128,2028.4,2028.3,0.0073888]
[1743072181443,0.98597,2028.2,2028.1,0.98599]
[1743072181645,0.98612,2027.9,2027.8,4.19392]
[1743072182035,0.98612,2027.9,2027.8,44.0078]
[1743072182341,0.98612,2027.9,2027.8,44.99397]
[1743072182747,0.98612,2027.9,2027.8,44.0078]
[1743072183341,0.98612,2027.9,2027.8,41.78617]
[1743072183743,2.30272,2027.9,2027.8,41.78617]
[1743072187751,2.30272,2027.9,2027.8,40.8]
[1743072187953,2.30272,2027.9,2027.8,41.78617]
[1743072192964,4.19391,2028.0,2027.9,0.98612]
[1743072193157,5.59201,2028.0,2027.9,2.36882]
[1743072193462,0.9934488,2028.1,2028.0,0.98607]
[1743072193664,2.3817488,2028.1,2028.0,0.98607]
[1743072195466,0.9934088,2028.1,2028.0,0.98607]
[1743072195852,2.3817088,2028.1,2028.0,0.98607]
[1743072198863,1.3956888,2028.1,2028.0,0.98607]
[1743072199065,2.3817088,2028.1,2028.0,0.98607]
[1743072199369,0.0073888,2028.1,2028.0,0.98607]
[1743072199669,3.2078,2028.3,2028.2,0.98597]
[1743072199868,0.98578,2028.6,2028.5,0.98583]
[1743072200264,2.31476,2028.7,2028.6,0.98578]
[1743072201469,1.329,2028.7,2028.6,0.98578]
[1743072201670,2.31473,2028.7,2028.6,0.98578]
[1743072202861,2.31473,2028.7,2028.6,1.69498]
[1743072208374,0.98578,2028.6,2028.5,2.40969]
[1743072208680,5.54908,2028.6,2028.5,2.40969]
[1743072219691,4.5633,2028.6,2028.5,2.40969]
[1743072220479,5.54908,2028.6,2028.5,2.40969]
[1743072223376,2.34128,2028.6,2028.5,2.40969]
[1743072233094,1.3555,2028.6,2028.5,2.40969]
[1743072233490,2.34128,2028.6,2028.5,2.40969]
[1743072233880,1.3555,2028.6,2028.5,2.40969]
[1743072234679,4.19357,2028.7,2028.6,0.98578]
[1743072234884,4.19357,2028.7,2028.6,2.33188]
[1743072235887,4.86687,2028.7,2028.6,2.33188]
[1743072236293,6.28497,2028.7,2028.6,0.98578]
[1743072245592,5.61167,2028.7,2028.6,0.98578]
[1743072249302,2.40387,2028.7,2028.6,0.98578]
[1743072252706,0.986,2028.2,2028.1,0.98595]
[1743072253005,0.98597,2028.3,2028.2,0.98593]
[1743072253504,2.38537,2028.3,2028.2,0.98593]
[1743072257600,0.98607,2028.1,2028.0,0.98602]
[1743072257800,4.19387,2028.1,2028.0,0.98602]
[1743072259305,4.19387,2028.1,2028.0,2.37562]
[1743072266816,0.98607,2028.1,2028.0,2.37562]
[1743072271018,2.41147,2028.1,2028.0,2.37562]
[1743072276317,2.41147,2028.1,2028.0,1.3896]
[1743072277432,2.41147,2028.1,2028.0,2.37567]
[1743072277628,2.41147,2028.1,2028.0,0.98607]
[1743072277827,0.98612,2028.0,2027.9,0.98608]
[1743072278029,2.35552,2028.0,2027.9,2.29458]
[1743072278833,2.35552,2028.0,2027.9,3.66578]
[1743072284836,2.35552,2028.0,2027.9,4.13578]
[1743072285437,2.35552,2028.0,2027.9,3.66578]
[1743072287635,2.35552,2028.0,2027.9,4.12578]
[1743072287835,2.35552,2028.0,2027.9,3.66578]
[1743072292641,2.35552,2028.0,2027.9,4.06578]
[1743072292833,2.35552,2028.0,2027.9,3.66578]
[1743072295236,3.03062,2028.0,2027.9,3.66578]
[1743072297138,3.03062,2028.0,2027.9,1.3085]
[1743072297332,0.98622,2027.7,2027.6,1.7051088]
[1743072297533,4.19402,2027.7,2027.6,1.7051088]
[1743072298528,4.19402,2027.7,2027.6,3.0877088]
[1743072298937,4.89012,2027.7,2027.6,3.0877088]
[1743072300242,4.89012,2027.7,2027.6,2.3762488]
[1743072300439,5.59532,2027.7,2027.6,2.3762488]
[1743072303140,5.59532,2027.7,2027.6,1.3899888]
[1743072303347,5.59532,2027.7,2027.6,0.0073888]
[1743072303533,5.59532,2027.7,2027.6,0.9936488]
[1743072304438,5.59532,2027.7,2027.6,1.6488488]
[1743072305147,4.89922,2027.7,2027.6,1.6488488]
[1743072306141,4.89922,2027.7,2027.6,0.0073888]
[1743072306344,4.89922,2027.7,2027.6,0.9936488]
[1743072306647,4.89922,2027.7,2027.6,2.3255488]
[1743072307241,8.06222,2027.7,2027.6,2.3255488]
[1743072310243,8.06222,2027.7,2027.6,1.3392888]
[1743072310445,8.06222,2027.7,2027.6,2.3255488]
[1743072310849,8.06222,2027.7,2027.6,43.1255488]
[1743072311349,8.06222,2027.7,2027.6,2.3255488]
[1743072312049,8.06222,2027.7,2027.6,1.3392888]
[1743072312255,8.06222,2027.7,2027.6,0.0073888]
[1743072313441,8.06222,2027.7,2027.6,0.9936488]
[1743072313752,8.06222,2027.7,2027.6,0.0073888]
[1743072316651,8.06222,2027.7,2027.6,1.3226888]
[1743072318156,8.06222,2027.7,2027.6,0.0073888]
[1743072320844,0.98646,2027.3,2027.2,0.98642]
[1743072321054,4.14946,2027.3,2027.2,0.98642]
[1743072322152,5.57536,2027.3,2027.2,2.27992]
[1743072324243,4.14941,2027.3,2027.2,2.27992]
[1743072325860,3.163,2027.3,2027.2,2.27992]
[1743072326753,2.3781,2027.4,2027.3,0.98641]
[1743072326951,2.3781,2027.4,2027.3,2.41831]
[1743072327848,3.2078,2027.5,2027.4,0.98636]
[1743072328048,3.2078,2027.5,2027.4,3.09526]
[1743072328559,4.19411,2027.5,2027.4,43.89526]
[1743072329750,4.19411,2027.5,2027.4,42.2319]
[1743072329956,5.56761,2027.5,2027.4,1.4319]
[1743072330255,6.98951,2027.5,2027.4,1.4319]
[1743072330454,6.98951,2027.5,2027.4,2.41826]
[1743072331656,6.32491,2027.5,2027.4,2.41826]
[1743072332161,5.61601,2027.5,2027.4,2.41826]
[1743072338466,8.77901,2027.5,2027.4,2.41826]
[1743072341466,7.35711,2027.5,2027.4,2.41826]
[1743072342260,3.2078,2027.5,2027.4,2.41826]
[1743072343066,2.29035,2027.7,2027.6,0.98626]
[1743072343664,2.29035,2027.7,2027.6,2.41596]
[1743072345670,5.49815,2027.7,2027.6,2.41596]
[1743072349866,3.2078,2027.7,2027.6,2.41596]
[1743072350071,0.98618,2027.8,2027.7,0.98617]
[1743072350267,2.28508,2027.8,2027.7,2.31607]
[1743072354563,1.2989,2027.8,2027.7,2.31607]
[1743072356169,3.2151888,2027.9,2027.8,0.98617]
[1743072356364,3.2151888,2027.9,2027.8,3.03357]
[1743072359072,0.98624,2027.8,2027.7,0.98618]
[1743072359273,3.03734,2027.8,2027.7,0.98618]
[1743072360467,2.38547,2027.8,2027.7,0.98618]
[1743072360666,1.3993,2027.8,2027.7,0.98618]
[1743072361374,3.2151888,2027.9,2027.8,0.98617]
[1743072361375,0.0073888,2027.9,2027.8,0.98617]
[1743072361576,0.0073888,2027.9,2027.8,5.10607]
[1743072361769,0.0073888,2027.9,2027.8,3.04607]
[1743072361969,0.0073888,2027.9,2027.8,3.45607]
[1743072362170,0.0073888,2027.9,2027.8,3.04607]
[1743072362367,0.0073888,2027.9,2027.8,3.71977]
[1743072363978,0.0073888,2027.9,2027.8,7.39757]
[1743072364179,0.0073888,2027.9,2027.8,6.92757]
[1743072364478,0.0073888,2027.9,2027.8,7.37757]
[1743072364680,4.19374,2028.3,2028.2,0.98597]
[1743072365179,3.2078,2028.3,2028.2,0.98597]
[1743072365377,4.19372,2028.3,2028.2,0.98597]
[1743072366076,5.52162,2028.3,2028.2,2.38407]
[1743072368680,4.5357,2028.3,2028.2,2.38407]
[1743072369980,5.52162,2028.3,2028.2,2.38407]
[1743072370186,4.5357,2028.3,2028.2,2.38407]
[1743072370677,0.0073888,2028.5,2028.4,0.98588]
[1743072370876,1.4258888,2028.5,2028.4,0.98588]
[1743072371076,1.4258888,2028.5,2028.4,1.64748]
[1743072371272,1.4258888,2028.5,2028.4,43.13888]
[1743072371467,0.0073888,2028.5,2028.4,43.13888]
[1743072371675,0.9932188,2028.5,2028.4,41.78588]
[1743072371876,3.0836188,2028.5,2028.4,41.78588]
[1743072373777,3.0836188,2028.5,2028.4,0.98588]
[1743072374680,0.98595,2028.4,2028.1,7.02577]
[1743072374886,2.97265,2028.4,2028.3,0.98589]
[1743072377691,6.18045,2028.4,2028.3,0.98589]
[1743072381186,0.98592,2028.3,2028.2,2.37533]
[1743072381386,2.35562,2028.3,2028.2,2.37533]
[1743072381687,0.98602,2028.1,2028.0,0.0073888]
[1743072381887,7.35482,2028.1,2028.0,0.0073888]
[1743072382285,9.36552,2028.1,2028.0,0.0073888]
[1743072383480,9.36552,2028.1,2027.6,0.98624]
[1743072383481,0.98626,2027.6,2027.5,3.2078]
[1743072383690,0.98635,2027.5,2027.4,0.98634]
[1743072384491,0.98635,2027.5,2027.4,41.78634]
[1743072384691,4.19415,2027.5,2027.4,42.1968]
[1743072385785,4.19415,2027.5,2027.4,43.18316]
[1743072386184,5.53755,2027.5,2027.4,43.18316]
[1743072386386,5.53755,2027.5,2027.4,42.1968]
[1743072386890,5.53755,2027.5,2027.4,1.3968]
[1743072387085,0.98641,2027.3,2027.2,0.0073888]
[1743072387286,0.98641,2027.3,2027.2,42.1432888]
[1743072388088,2.36421,2027.3,2027.2,42.1432888]
[1743072391090,2.36421,2027.3,2027.2,40.8073888]
[1743072394192,2.36421,2027.3,2027.2,0.0073888]
[1743072397392,2.36421,2027.3,2027.2,8.8e-06]
[1743072398086,4.86421,2027.3,2027.2,8.8e-06]
[1743072398284,2.36421,2027.3,2027.2,8.8e-06]
[1743072398885,4.86421,2027.3,2027.2,8.8e-06]
[1743072399091,2.46744,2026.2,2025.8,3.2078]
[1743072399391,0.98714,2025.8,2025.7,2.32977]
[1743072399589,3.2078,2025.9,2025.8,0.98714]
[1743072399787,0.98714,2025.8,2025.7,2.32978]
[1743072399990,0.98714,2025.8,2025.7,43.12978]
[1743072400189,0.98714,2025.8,2025.7,42.1426]
[1743072400994,0.98714,2025.8,2025.7,43.12979]
[1743072401300,0.98714,2025.8,2025.7,42.1426]
[1743072401789,0.98714,2025.8,2025.7,43.12979]
[1743072402791,3.2078,2025.9,2025.7,43.12979]
[1743072402998,3.2078,2025.9,2025.8,0.98714]
[1743072403989,4.19489,2025.9,2025.8,0.98714]
[1743072404193,3.2078,2025.9,2025.8,0.98714]
[1743072404394,4.19489,2025.9,2025.8,2.29624]
[1743072405505,3.2078,2025.9,2025.8,2.29624]
[1743072405997,4.19489,2025.9,2025.8,1.3091]
[1743072406201,4.19489,2025.9,2025.7,41.78717]
[1743072406202,0.98714,2025.8,2025.7,40.8]
[1743072406404,4.18214,2025.8,2025.7,41.78719]
[1743072407098,0.98714,2025.8,2025.7,41.78719]
[1743072407298,0.98714,2025.8,2025.7,40.8]
[1743072407493,0.98714,2025.8,2025.7,41.78719]
[1743072407494,2.39474,2025.8,2025.7,41.78719]
[1743072407801,2.39474,2025.8,2025.7,43.18989]
[1743072408003,2.39474,2025.8,2025.7,42.2027]
[1743072408194,2.46807,2025.7,2025.3,3.2078]
[1743072408395,0.98744,2025.3,2025.2,0.98738]
[1743072408798,0.98744,2025.3,2025.1,1.4027]
[1743072408799,0.98743,2025.2,2025.1,2.39016]
[1743072409205,0.98743,2025.2,2025.1,43.19016]
[1743072410306,0.98743,2025.2,2025.1,42.2027]
[1743072412000,2.395,2025.3,2025.1,42.2027]
[1743072412203,0.9874,2025.3,2025.2,2.30093]
[1743072412404,0.9874,2025.3,2025.2,2.95913]
[1743072413000,5.55088,2025.4,2025.3,0.98738]
[1743072413206,8.75488,2025.4,2025.3,0.98738]
[1743072414407,8.75488,2025.4,2025.3,2.30088]
[1743072415507,8.75488,2025.4,2025.3,1.3135]
[1743072416104,0.98743,2025.2,2025.1,41.78746]
[1743072417505,7.39918,2025.4,2025.3,0.98738]
[1743072418507,8.73208,2025.4,2025.3,1.69578]
[1743072418702,8.73208,2025.4,2025.3,0.7084]
[1743072418905,8.73208,2025.4,2025.3,1.69578]
[1743072419406,8.73208,2025.4,2025.3,0.7084]
[1743072419607,0.98738,2025.3,2025.2,2.29832]
[1743072419913,2.32028,2025.3,2025.2,1.3109]
[1743072420907,2.99688,2025.3,2025.2,1.3109]
[1743072421102,0.98743,2025.2,2025.1,40.8]
[1743072421299,2.36733,2025.2,2025.1,43.09878]
[1743072421506,2.36733,2025.2,2025.1,2.29878]
[1743072422413,0.98743,2025.2,2025.1,2.29878]
[1743072423708,0.98743,2025.3,2025.2,0.98743]
[1743072423914,7.39918,2025.4,2025.3,0.98738]
[1743072424328,7.39918,2025.4,2025.3,1.67058]
[1743072425514,8.83418,2025.4,2025.3,1.67058]
[1743072427522,8.83418,2025.4,2025.3,0.6832]
[1743072427825,0.98748,2025.1,2025.0,42.48079]
[1743072428017,0.98748,2025.1,2025.0,43.18009]
[1743072428219,0.98753,2025.0,2024.9,3.2078]
[1743072428417,0.98753,2025.0,2024.6,2.46931]
[1743072428418,0.98763,2024.8,2024.7,2.37092]
[1743072429019,0.98773,2024.7,2024.6,0.98768]
[1743072429214,2.30213,2024.7,2024.6,2.30298]
[1743072430213,5.50513,2024.7,2024.6,1.3153]
[1743072430413,2.4694,2024.6,2024.2,2.33379]
[1743072430624,0.98787,2024.3,2024.2,1.3459]
[1743072431124,0.98787,2024.3,2024.2,2.33382]
[1743072431427,2.35027,2024.3,2024.2,2.33382]
[1743072432523,1.3624,2024.3,2024.2,2.33382]
[1743072432824,3.2078,2024.5,2024.4,0.98782]
[1743072433125,0.6477,2024.7,2024.6,0.98773]
[1743072433126,4.19772,2024.7,2024.6,0.98773]
[1743072433528,5.6792,2024.7,2024.3,3.2078]
[1743072433726,0.98782,2024.5,2024.4,42.1883]
[1743072434024,0.98782,2024.5,2024.4,40.8]
[1743072434220,2.30032,2024.5,2024.4,42.1883]
[1743072434431,8.00812,2024.5,2023.9,3.2078]
[1743072434724,0.98809,2023.9,2023.7,0.98814]
[1743072434921,3.2078,2023.8,2023.5,46.788]
[1743072435231,0.98823,2023.6,2023.4,0.98828]
[1743072435431,0.98823,2023.6,2023.5,1.3883]
[1743072435614,3.252,2023.7,2023.0,0.664]
[1743072435818,3.8888,2023.6,2023.1,1.3883]
[1743072436120,3.259,2023.5,2023.4,0.98831]
[1743072436315,6.4728,2023.6,2023.1,4.5961]
[1743072436528,6.4728,2023.6,2023.2,1.3109]
[1743072436735,6.4728,2023.6,2023.4,0.98827]
[1743072436921,6.4728,2023.6,2023.5,1.3109]
[1743072437123,6.4728,2023.6,2023.0,0.664]
[1743072437428,6.4728,2023.6,2022.9,0.7096]
[1743072437429,0.98847,2023.1,2022.9,0.7096]
[1743072437620,3.303,2023.1,2023.0,0.98851]
[1743072437819,4.29149,2023.1,2022.9,2.0205]
[1743072438016,0.7053,2023.7,2022.9,2.0205]
[1743072438017,6.5198,2023.6,2023.0,40.8]
[1743072438223,3.2078,2023.3,2023.0,40.8]
[1743072438419,0.98846,2023.1,2023.0,40.8]
[1743072438615,3.314,2023.2,2023.0,42.1109]
[1743072438829,4.30243,2023.2,2023.0,42.1109]
[1743072439330,4.30244,2023.2,2023.0,42.1109]
[1743072439533,0.98846,2023.1,2023.0,42.1109]
[1743072439723,3.314,2023.2,2023.0,42.1109]
[1743072439924,3.314,2023.2,2023.1,0.98846]
[1743072440121,3.314,2023.2,2023.0,42.1109]
[1743072440122,3.2078,2023.6,2023.0,42.1109]
[1743072440426,3.326,2023.7,2023.1,3.2078]
[1743072440626,6.54720722,2023.9,2023.8,0.98812]
[1743072440827,3.21520722,2023.9,2023.3,2.47091]
[1743072441127,3.21520722,2023.9,2023.8,0.98812]
[1743072441430,0.00740722,2023.9,2023.8,41.78812]
[1743072441633,0.00740722,2023.9,2023.8,43.19742]
[1743072443729,0.00740722,2023.9,2023.8,40.8]
[1743072444026,3.35640722,2023.9,2023.8,41.78812]
[1743072444227,3.35640722,2023.9,2023.5,2.31714]
[1743072444428,3.2078,2023.6,2023.1,0.98844]
[1743072444632,3.355,2023.5,2023.1,1.3289]
[1743072444828,3.2078,2023.2,2022.8,0.9886]
[1743072445028,0.98851,2023.0,2022.8,2.3175]
[1743072445220,0.98851,2023.0,2022.9,1.3289]
[1743072446230,0.9886,2022.8,2022.7,41.4569]
[1743072446430,4.3496,2022.8,2022.7,40.8]
[1743072446731,4.3496,2022.8,2022.7,41.78865]
[1743072446732,3.361,2022.8,2022.7,41.78865]
[1743072446929,3.361,2022.8,2022.4,3.2078]
[1743072447132,3.361,2022.8,2022.7,0.98865]
[1743072447332,4.35702722,2022.8,2022.5,1.3278]
[1743072447534,3.36840722,2022.8,2022.7,0.98865]
[1743072447927,3.36840722,2022.8,2022.7,2.31645]
[1743072448138,3.36840722,2022.8,2022.6,40.8]
[1743072448436,4.07980722,2022.8,2022.6,41.7887]
[1743072448733,3.36840722,2022.8,2022.7,0.98865]
[1743072448922,3.36840722,2022.8,2022.7,2.35885]
[1743072449625,4.35700722,2022.8,2022.7,2.35885]
[1743072449826,3.36840722,2022.8,2022.7,2.35885]
[1743072450735,4.35700722,2022.8,2022.7,2.35885]
[1743072450937,4.67690722,2022.8,2022.7,2.35885]
[1743072451123,5.66550722,2022.8,2022.7,1.3702]
[1743072451436,4.67690722,2022.8,2022.3,1.69633]
[1743072451735,0.98879,2022.5,2022.4,0.9888]
[1743072451934,3.381,2022.5,2022.4,40.8]
[1743072452134,4.36977,2022.5,2022.4,41.7888]
[1743072452431,0.9888,2022.4,2022.3,0.98881]
[1743072452629,2.3885,2022.4,2022.2,1.3173]
[1743072452835,1.3997,2022.4,2022.3,41.78885]
[1743072453535,0.00740722,2022.8,2022.7,0.98865]
[1743072453839,4.79010722,2022.8,2022.5,0.98875]
[1743072454139,4.79010722,2022.8,2022.4,1.3173]
[1743072454339,0.98866,2022.7,2022.6,0.98868]
[1743072454534,1.3997,2022.7,2022.6,0.98868]
[1743072454733,0.00740722,2022.8,2022.7,0.98865]
[1743072455038,3.39440722,2022.8,2022.7,0.98865]
[1743072455733,0.98865,2022.7,2022.6,2.42187]
[1743072456340,2.37765,2022.7,2022.6,1.4332]
[1743072456534,4.5968,2022.7,2022.3,40.8]
[1743072456839,0.6786,2022.6,2022.3,43.22202]
[1743072457035,0.98885,2022.3,2022.2,3.2078]
[1743072457840,0.98884,2022.4,2022.2,4.19667]
[1743072458041,1.3318,2022.3,2022.2,5.50407]
[1743072458235,3.392,2022.5,2022.3,0.98885]
[1743072458435,1.31029614,2022.4,2022.0,43.93686]
[1743072458637,1.31029614,2022.4,2022.3,0.98885]
[1743072458835,3.392,2022.5,2022.0,40.8]
[1743072459034,3.392,2022.5,2022.4,0.9888]
[1743072459230,3.2078,2022.7,2022.3,0.02094194]
[1743072459435,4.39804722,2022.8,2022.6,0.98868]
[1743072459941,0.96770806,2022.7,2022.6,0.98868]
[1743072460243,0.96770806,2022.7,2022.2,5.68001]
[1743072460438,4.39803722,2022.8,2022.6,0.98867]
[1743072460646,3.40940722,2022.8,2022.7,0.98865]
[1743072460846,0.00740722,2022.8,2022.7,0.98865]
[1743072461142,0.00740722,2022.8,2022.7,1.00959194]
[1743072461734,0.00740722,2022.8,2022.7,0.98865]
[1743072461940,3.2078,2023.3,2023.2,0.98841]
[1743072462441,1.4003,2023.5,2023.4,0.98831]
[1743072462949,3.2078,2023.8,2023.7,0.98817]
[1743072463952,3.2078,2023.8,2023.7,1.03005388]
[1743072464245,3.2078,2023.8,2023.7,1.05099425]
[1743072464745,0.00740722,2024.0,2023.9,0.98807]
[1743072465633,0.00740722,2024.0,2023.9,4.19587]
[1743072465835,0.00740722,2024.0,2023.9,4.27963462]
[1743072466045,0.00740722,2024.0,2023.9,4.71963462]
[1743072466239,0.00740722,2024.0,2023.9,4.27963462]
[1743072466439,0.00740722,2024.0,2023.9,4.30057499]
[1743072466945,0.00740722,2024.0,2023.9,4.32151536]
[1743072467645,0.00740722,2024.0,2023.9,45.12151536]
[1743072468153,8.98857,2024.5,2024.4,0.98782]
[1743072468447,8.0008,2024.5,2024.4,1.13440573]
[1743072468840,5.58257,2024.5,2024.4,0.14658573]
[1743072469039,4.5948,2024.5,2024.4,1.13440573]
[1743072469548,0.8202939,2024.4,2024.3,0.98786]
[1743072469733,1.3647,2024.4,2024.2,0.66940722]
[1743072469935,0.98787,2024.3,2024.2,0.66940722]
[1743072470135,0.98787,2024.3,2024.2,0.00740722]
[1743072470354,4.38787,2024.3,2024.2,0.02834759]
[1743072470547,6.5893,2024.3,2023.5,3.2078]
[1743072470745,0.98812,2023.8,2023.7,0.98814]
[1743072470947,3.403,2023.9,2023.7,0.98814]
[1743072471146,1.3537,2023.8,2023.7,0.98814]
[1743072471644,0.98821,2023.6,2023.5,3.21520722]
[1743072471845,0.98821,2023.6,2023.5,0.00740722]
[1743072472547,4.39021,2023.6,2023.5,0.00740722]
[1743072472751,4.39021,2023.6,2023.5,0.99566722]
[1743072474055,3.402,2023.6,2023.5,0.99566722]
[1743072474249,4.39021,2023.6,2023.5,0.99566722]
[1743072474554,4.39021,2023.6,2023.5,0.00740722]
[1743072474951,5.77291,2023.6,2023.5,0.00740722]
[1743072475150,4.7847,2023.6,2023.5,0.99566722]
[1743072475351,3.402,2023.6,2023.5,0.99566722]
[1743072476254,4.5905,2023.7,2023.6,0.98821]
[1743072476454,4.5905,2023.7,2023.6,2.40231]
[1743072476653,5.57867,2023.7,2023.6,1.4141]
[1743072477049,0.94636027,2023.6,2023.5,0.00740722]
[1743072477358,2.27406027,2023.6,2023.5,0.99566722]
[1743072478554,2.27406027,2023.6,2023.5,1.01659366]
[1743072478856,1.3277,2023.6,2023.5,1.01659366]
[1743072479054,2.31591,2023.6,2023.5,1.01659366]
[1743072479453,1.3277,2023.6,2023.5,1.01659366]
[1743072479657,1.3277,2023.6,2023.5,1.02146473]
[1743072479950,2.31591,2023.6,2023.5,1.02146473]
[1743072480147,1.3277,2023.6,2023.5,1.02146473]
[1743072480657,3.2078,2023.7,2023.6,0.98821]
[1743072480956,3.2078,2023.7,2023.6,2.41961]
[1743072481558,4.597,2023.7,2023.6,2.41961]
[1743072481758,4.597,2023.7,2023.6,2.44540751]
[1743072483055,4.38098,2024.1,2024.0,0.98799]
[1743072483255,8.96428,2024.1,2024.0,0.98799]
[1743072483454,8.96428,2024.1,2023.8,1.3477]
[1743072483455,7.9763,2024.1,2023.8,1.3477]
[1743072483755,0.98805,2024.0,2023.9,1.01385751]
[1743072483959,2.36355,2024.0,2023.9,0.02579751]
[1743072485361,0.94571453,2023.7,2023.6,0.98821]
[1743072485552,4.34171453,2023.7,2023.6,0.98821]
[1743072485859,4.34171453,2023.7,2023.6,1.00486796]
[1743072486060,5.75711453,2023.7,2023.6,0.01665796]
[1743072486856,6.41091453,2023.7,2023.6,0.01665796]
[1743072487358,6.41091453,2023.7,2023.6,1.02150554]
[1743072487754,6.41091453,2023.7,2023.6,0.03329554]
[1743072487955,0.93827688,2023.6,2023.5,2.34334722]
[1743072488260,2.35367688,2023.6,2023.5,2.34334722]
[1743072489657,2.35367688,2023.6,2023.5,1.35510722]
[1743072489856,2.35367688,2023.6,2023.5,0.00740722]
[1743072491658,0.98849,2023.1,2023.0,0.98845]
[1743072491860,3.399,2023.2,2022.4,43.27199]
[1743072492057,0.98871,2022.7,2022.6,0.98866]
[1743072492260,4.40671,2022.7,2022.6,0.98866]
[1743072493264,1.4182,2022.8,2022.5,1.2971]
[1743072493265,4.8342,2022.8,2022.7,0.98865]
[1743072493459,5.8228,2022.8,2022.7,0.98865]
[1743072493972,5.8228,2022.8,2022.7,1.2971]
[1743072494170,5.8228,2022.8,2022.7,1.318052]
[1743072494664,5.8228,2022.8,2022.7,0.020952]
[1743072495065,0.98865,2022.7,2022.6,0.98869]
[1743072495261,2.321946,2022.7,2022.6,0.98869]
[1743072495462,0.9887,2022.6,2022.5,1.3284]